fUSD/lending_fUSD_20240803
["ID","MTS","AMOUNT","RATE_DAILY","PERIOD"]
[334004440,1722672685759,-500.0,0.00018082,2]
[334004441,1722672685768,-879.02,0.00018082,2]
[334004442,1722672685777,-1083.8,0.00018082,2]
[334004443,1722672685787,-500.0,0.00018082,2]
[334004444,1722672685797,-500.0,0.00018082,2]
[334004445,1722672685807,-515.45,0.00018082,2]
[334004446,1722672685817,-500.0,0.00018082,2]
[334004447,1722672685826,-500.0,0.00018082,2]
[334004448,1722672685836,-582.42,0.00018082,2]
[334004449,1722672685845,-500.0,0.00018082,2]
[334004450,1722672685855,-500.0,0.00018082,2]
[334004451,1722672685864,-500.0,0.00018082,2]
[334004452,1722672685874,-500.0,0.00018082,2]
[334004453,1722672685884,-500.0,0.00018082,2]
[334004454,1722672685894,-500.0,0.00018082,2]
[334004455,1722672685903,-500.0,0.00018082,2]
[334004456,1722672685913,-500.0,0.00018082,2]
[334004457,1722672685922,-1218.45,0.00018082,2]
[334004458,1722672685931,-500.0,0.00018082,2]
[334004459,1722672685941,-527.92,0.00018082,2]
[334004460,1722672685951,-500.0,0.00018082,2]
[334004461,1722672685960,-500.0,0.00018082,2]
[334004462,1722672685970,-500.0,0.00018082,2]
[334004463,1722672685979,-500.0,0.00018082,2]
[334004464,1722672685989,-611.34,0.00018082,2]
[334004465,1722672685999,-500.0,0.00018082,2]
[334004466,1722672686008,-500.0,0.00018082,2]
[334004467,1722672686018,-500.0,0.00018082,2]
[334004468,1722672686027,-500.0,0.00018082,2]
[334004469,1722672686037,-705.81,0.00018082,2]
[334004470,1722672686047,-661.0,0.00018082,2]
[334004471,1722672686057,-342.67,0.00018082,2]
[334004472,1722672686066,-500.0,0.00018082,2]
[334004473,1722672686077,-500.0,0.00018082,2]
[334004474,1722672686086,-500.0,0.00018082,2]
[334004475,1722672686096,-638.82,0.00018082,2]
[334004476,1722672686106,-744.23,0.00018082,2]
[334004477,1722672686115,-500.0,0.00018082,2]
[334004478,1722672686125,-500.0,0.00018082,2]
[334004479,1722672686135,-570.99,0.00018082,2]
[334004480,1722672686145,-727.54,0.00018082,2]
[334004481,1722672686154,-500.0,0.00018082,2]
[334004482,1722672686164,-500.0,0.00018082,2]
[334004483,1722672686173,-617.25,0.00018082,2]
[334004484,1722672686182,-500.0,0.00018082,2]
[334004485,1722672686192,-714.79,0.00018082,2]
[334004486,1722672686203,-556.41,0.00018082,2]
[334004487,1722672686212,-500.0,0.00018082,2]
[334004488,1722672686222,-500.0,0.00018082,2]
[334004489,1722672686234,-788.92,0.00018082,2]
[334004490,1722672686244,-1029.17,0.00018082,2]
[334004491,1722672686254,-500.0,0.00018082,2]
[334004492,1722672686264,-500.0,0.00018082,2]
[334004493,1722672686274,-710.03,0.00018082,2]
[334004494,1722672686284,-738.88,0.00018082,2]
[334004495,1722672686293,-539.38,0.00018082,2]
[334004496,1722672686302,-808.77,0.00018082,2]
[334004497,1722672686312,-175.92115073,0.00018082,2]
[334004498,1722672686322,-500.0,0.00018082,2]
[334004499,1722672686331,-830.0,0.00018082,2]
[334004500,1722672686340,-554.02,0.00018082,2]
[334004501,1722672686350,-525.28,0.00018082,2]
[334004502,1722672686359,-500.0,0.00018082,2]
[334004503,1722672686369,-726.72,0.00018082,2]
[334004504,1722672686379,-500.0,0.00018082,2]
[334004505,1722672686388,-500.0,0.00018082,2]
[334004506,1722672686398,-500.0,0.00018082,2]
[334004507,1722672686407,-663.62,0.00018082,2]
[334004508,1722672686416,-500.0,0.00018082,2]
[334004509,1722672686426,-500.0,0.00018082,2]
[334004510,1722672686436,-547.37,0.00018082,2]
[334004511,1722672686445,-500.0,0.00018082,2]
[334004512,1722672686455,-500.0,0.00018082,2]
[334004513,1722672686464,-658.43,0.00018082,2]
[334004514,1722672686473,-529.53,0.00018082,2]
[334004515,1722672686483,-1319.94,0.00018082,2]
[334004516,1722672686492,-1146.49,0.00018082,2]
[334004517,1722672686501,-4233.34,0.00018082,2]
[334004518,1722672686512,-500.0,0.00018082,2]
[334004519,1722672686523,-955.66,0.00018082,2]
[334004520,1722672686532,-595.12,0.00018082,2]
[334004521,1722672686541,-746.94,0.00018082,2]
[334004522,1722672686551,-673.07,0.00018082,2]
[334004523,1722672686560,-500.0,0.00018082,2]
[334004524,1722672686570,-834.43,0.00018082,2]
[334004525,1722672686579,-9414.57,0.00018082,2]
[334004526,1722672686590,-500.0,0.00018082,2]
[334004527,1722672686599,-500.0,0.00018082,2]
[334004528,1722672686609,-657.98,0.00018082,2]
[334004529,1722672686618,-1422.26,0.00018082,2]
[334004530,1722672686627,-500.0,0.00018082,2]
[334004531,1722672686637,-684.61,0.00018082,2]
[334004532,1722672686646,-500.0,0.00018082,2]
[334004533,1722672686656,-500.0,0.00018082,2]
[334004534,1722672686666,-905.13,0.00018082,2]
[334004535,1722672686687,-755.85,0.00018082,2]
[334004536,1722672686697,-500.0,0.00018082,2]
[334004537,1722672686707,-500.0,0.00018082,2]
[334004538,1722672686717,-561.29,0.00018082,2]
[334004539,1722672686728,-500.0,0.00018082,2]
[334004540,1722672686739,-500.0,0.00018082,2]
[334004541,1722672686750,-500.0,0.00018082,2]
[334004542,1722672686760,-857.89,0.00018082,2]
[334004543,1722672686770,-42354.3,0.00018082,2]
[334004544,1722672686780,-580.03,0.00018082,2]
[334004545,1722672686790,-5350.45,0.00018082,2]
[334004546,1722672686800,-500.0,0.00018082,2]
[334004547,1722672686810,-728.4,0.00018082,2]
[334004548,1722672686821,-500.0,0.00018082,2]
[334004549,1722672686831,-500.0,0.00018082,2]
[334004550,1722672686842,-500.0,0.00018082,2]
[334004551,1722672686852,-3471.03,0.00018082,2]
[334004552,1722672686862,-609.74,0.00018082,2]
[334004553,1722672686872,-1689.99,0.00018082,2]
[334004554,1722672686883,-500.0,0.00018082,2]
[334004555,1722672686894,-6425.66,0.00018082,2]
[334004556,1722672686903,-648.94,0.00018082,2]
[334004557,1722672686914,-500.0,0.00018082,2]
[334004558,1722672686924,-1670.28,0.00018082,2]
[334004559,1722672686933,-13172.1,0.00018082,2]
[334004560,1722672686943,-6701.04,0.00018082,2]
[334004561,1722672686953,-2424.35,0.00018082,2]
[334004562,1722672686963,-1079.15,0.00018082,2]
[334004563,1722672686973,-697.85,0.00018082,2]
[334004564,1722672686983,-1261.65,0.00018082,2]
[334004565,1722672686992,-1264.29,0.00018082,2]
[334004566,1722672687002,-500.0,0.00018082,2]
[334004567,1722672687012,-500.0,0.00018082,2]
[334004568,1722672687021,-3981.7,0.00018082,2]
[334004569,1722672687031,-808.41,0.00018082,2]
[334004570,1722672687040,-500.0,0.00018082,2]
[334004571,1722672687050,-9537.11,0.00018082,2]
[334004572,1722672687059,-500.0,0.00018082,2]
[334004573,1722672687069,-627.46,0.00018082,2]
[334004574,1722672687078,-873.33,0.00018082,2]
[334004575,1722672687089,-4527.79,0.00018082,2]
[334004576,1722672687098,-1120.2,0.00018082,2]
[334004577,1722672687108,-500.0,0.00018082,2]
[334004578,1722672687118,-500.0,0.00018082,2]
[334004579,1722672687130,-1413.65,0.00018082,2]
[334004580,1722672687139,-799.1,0.00018082,2]
[334004581,1722672687150,-2582.22,0.00018082,2]
[334004582,1722672687159,-500.0,0.00018082,2]
[334004583,1722672687170,-500.0,0.00018082,2]
[334004584,1722672687181,-500.0,0.00018082,2]
[334004585,1722672687191,-558.9,0.00018082,2]
[334004586,1722672687201,-4338.65,0.00018082,2]
[334004587,1722672687212,-500.0,0.00018082,2]
[334004588,1722672687224,-589.65,0.00018082,2]
[334004589,1722672687234,-500.0,0.00018082,2]
[334004590,1722672687244,-6299.84,0.00018082,2]
[334004591,1722672687253,-500.0,0.00018082,2]
[334004592,1722672687263,-3567.38,0.00018082,2]
[334004593,1722672687273,-504.8,0.00018082,2]
[334004594,1722672687283,-500.0,0.00018082,2]
[334004595,1722672687409,-1132.78,0.00018082,2]
[334004596,1722672687420,-527.09,0.00018082,2]
[334004597,1722672687430,-500.0,0.00018082,2]
[334004598,1722672687439,-500.0,0.00018082,2]
[334004599,1722672687449,-557.75,0.00018082,2]
[334004600,1722672687458,-500.0,0.00018082,2]
[334004601,1722672687468,-500.0,0.00018082,2]
[334004602,1722672687479,-775.61,0.00018082,2]
[334004603,1722672687493,-5075.14,0.00018082,2]
[334004604,1722672687502,-500.0,0.00018082,2]
[334004605,1722672687511,-1597.24,0.00018082,2]
[334004606,1722672687525,-524.51,0.00018082,2]
[334004607,1722672687534,-2236.78,0.00018082,2]
[334004608,1722672687544,-591.43,0.00018082,2]
[334004609,1722672687554,-739.97,0.00018082,2]
[334004610,1722672687565,-1988.37,0.00018082,2]
[334004611,1722672687574,-7580.49,0.00018082,2]
[334004612,1722672687585,-500.0,0.00018082,2]
[334004613,1722672687596,-500.0,0.00018082,2]
[334004614,1722672687606,-1153.18,0.00018082,2]
[334004615,1722672687616,-1779.35,0.00018082,2]
[334004616,1722672687626,-806.0,0.00018082,2]
[334004617,1722672687637,-520.82,0.00018082,2]
[334004618,1722672687647,-1222.12,0.00018082,2]
[334004619,1722672687657,-500.0,0.00018082,2]
[334004620,1722672687667,-543.96,0.00018082,2]
[334004621,1722672687676,-500.0,0.00018082,2]
[334004622,1722672687686,-500.0,0.00018082,2]
[334004623,1722672687696,-2755.57,0.00018082,2]
[334004624,1722672687706,-1766.59,0.00018082,2]
[334004625,1722672687715,-500.0,0.00018082,2]
[334004626,1722672687727,-500.0,0.00018082,2]
[334004627,1722672687736,-6784.85,0.00018082,2]
[334004628,1722672687746,-500.0,0.00018082,2]
[334004629,1722672687755,-1170.99,0.00018082,2]
[334004630,1722672687765,-500.0,0.00018082,2]
[334004631,1722672687775,-1509.0,0.00018082,2]
[334004632,1722672687784,-2272.41,0.00018082,2]
[334004633,1722672687793,-1134.66,0.00018082,2]
[334004634,1722672687802,-788.7,0.00018082,2]
[334004635,1722672687811,-500.0,0.00018082,2]
[334004636,1722672687820,-500.0,0.00018082,2]
[334004637,1722672687830,-500.0,0.00018082,2]
[334004638,1722672687839,-500.0,0.00018082,2]
[334004639,1722672687848,-500.0,0.00018082,2]
[334004640,1722672687858,-556.92,0.00018082,2]
[334004641,1722672687867,-851.8,0.00018082,2]
[334004642,1722672687876,-500.0,0.00018082,2]
[334004643,1722672687885,-829.82,0.00018082,2]
[334004644,1722672687895,-500.0,0.00018082,2]
[334004645,1722672687905,-978.08,0.00018082,2]
[334004646,1722672687916,-3555.81,0.00018082,2]
[334004647,1722672687926,-1000.11,0.00018082,2]
[334004648,1722672687936,-500.0,0.00018082,2]
[334004649,1722672687945,-1173.97,0.00018082,2]
[334004650,1722672687957,-500.0,0.00018082,2]
[334004651,1722672687968,-500.0,0.00018082,2]
[334004652,1722672687977,-6514.15,0.00018082,2]
[334004653,1722672687987,-500.0,0.00018082,2]
[334004654,1722672687996,-828.77,0.00018082,2]
[334004655,1722672688005,-1272.15,0.00018082,2]
[334004656,1722672688015,-3333.78,0.00018082,2]
[334004657,1722672688024,-1643.08,0.00018082,2]
[334004658,1722672688034,-1598.98,0.00018082,2]
[334004659,1722672688044,-2015.77,0.00018082,2]
[334004660,1722672688054,-3382.08,0.00018082,2]
[334004661,1722672688063,-1056.18,0.00018082,2]
[334004662,1722672688072,-1410.26,0.00018082,2]
[334004663,1722672688081,-500.0,0.00018082,2]
[334004664,1722672688090,-500.0,0.00018082,2]
[334004665,1722672688099,-657.49,0.00018082,2]
[334004666,1722672688108,-500.0,0.00018082,2]
[334004667,1722672688118,-1314.36,0.00018082,2]
[334004668,1722672688127,-5105.47,0.00018082,2]
[334004669,1722672688138,-1117.0,0.00018082,2]
[334004670,1722672688147,-863.0,0.00018082,2]
[334004671,1722672688158,-988.31,0.00018082,2]
[334004672,1722672688168,-500.0,0.00018082,2]
[334004673,1722672688177,-588.88,0.00018082,2]
[334004674,1722672688187,-916.53,0.00018082,2]
[334004675,1722672688196,-500.0,0.00018082,2]
[334004676,1722672688205,-3858.07,0.00018082,2]
[334004677,1722672688215,-886.61,0.00018082,2]
[334004678,1722672688224,-2523.24,0.00018082,2]
[334004679,1722672688234,-1144.92,0.00018082,2]
[334004680,1722672688243,-500.0,0.00018082,2]
[334004681,1722672688252,-1055.01,0.00018082,2]
[334004682,1722672688262,-500.0,0.00018082,2]
[334004683,1722672688271,-596.99,0.00018082,2]
[334004684,1722672688280,-500.0,0.00018082,2]
[334004685,1722672688289,-585.93984739,0.00018082,2]
[334004686,1722672688300,-867.52,0.00018082,2]
[334004687,1722672688312,-758.07,0.00018082,2]
[334004688,1722672688325,-500.0,0.00018082,2]
[334004689,1722672688335,-1413.54,0.00018082,2]
[334004690,1722672688346,-500.0,0.00018082,2]
[334004691,1722672688358,-500.0,0.00018082,2]
[334004692,1722672688367,-626.69,0.00018082,2]
[334004693,1722672688377,-1086.46,0.00018082,2]
[334004694,1722672688386,-500.0,0.00018082,2]
[334004695,1722672688398,-2041.55,0.00018082,2]
[334004696,1722672688408,-1048.09,0.00018082,2]
[334004697,1722672688419,-945.91,0.00018082,2]
[334004698,1722672688428,-503.04,0.00018082,2]
[334004699,1722672688437,-2243.32,0.00018082,2]
[334004700,1722672688446,-500.0,0.00018082,2]
[334004701,1722672688455,-1876.41,0.00018082,2]
[334004702,1722672688465,-876.92,0.00018082,2]
[334004703,1722672688474,-500.0,0.00018082,2]
[334004704,1722672688484,-596.72,0.00018082,2]
[334004705,1722672688493,-1974.73,0.00018082,2]
[334004706,1722672688503,-500.0,0.00018082,2]
[334004707,1722672688512,-849.08,0.00018082,2]
[334004708,1722672688524,-1836.41,0.00018082,2]
[334004709,1722672688534,-3536.23,0.00018082,2]
[334004710,1722672688543,-1295.33,0.00018082,2]
[334004711,1722672688553,-500.0,0.00018082,2]
[334004712,1722672688562,-2083.37,0.00018082,2]
[334004713,1722672688571,-500.0,0.00018082,2]
[334004714,1722672688580,-500.0,0.00018082,2]
[334004715,1722672688591,-500.0,0.00018082,2]
[334004716,1722672688600,-500.0,0.00018082,2]
[334004717,1722672688610,-1001.94,0.00018082,2]
[334004718,1722672688619,-3080.78,0.00018082,2]
[334004719,1722672688628,-547.37,0.00018082,2]
[334004720,1722672688638,-500.0,0.00018082,2]
[334004721,1722672688648,-1224.2,0.00018082,2]
[334004722,1722672688657,-3054.54,0.00018082,2]
[334004723,1722672688668,-1519.85,0.00018082,2]
[334004724,1722672688677,-1194.14,0.00018082,2]
[334004725,1722672688687,-793.38,0.00018082,2]
[334004726,1722672688696,-500.0,0.00018082,2]
[334004727,1722672688705,-871.03,0.00018082,2]
[334004728,1722672688715,-525.65,0.00018082,2]
[334004729,1722672688725,-1267.34,0.00018082,2]
[334004730,1722672688735,-500.0,0.00018082,2]
[334004731,1722672688745,-3366.59,0.00018082,2]
[334004732,1722672688754,-992.94,0.00018082,2]
[334004733,1722672688764,-555.73,0.00018082,2]
[334004734,1722672688773,-550.93,0.00018082,2]
[334004735,1722672688783,-500.0,0.00018082,2]
[334004736,1722672688792,-500.0,0.00018082,2]
[334004737,1722672688801,-642.28,0.00018082,2]
[334004738,1722672688811,-1662.23,0.00018082,2]
[334004739,1722672688821,-1946.82,0.00018082,2]
[334004740,1722672688831,-1212.94,0.00018082,2]
[334004741,1722672688840,-1900.41,0.00018082,2]
[334004742,1722672688851,-500.0,0.00018082,2]
[334004743,1722672688861,-2354.23,0.00018082,2]
[334004744,1722672688870,-937.73,0.00018082,2]
[334004745,1722672688880,-692.84,0.00018082,2]
[334004746,1722672688890,-1192.07,0.00018082,2]
[334004747,1722672688899,-1258.11,0.00018082,2]
[334004748,1722672688909,-500.0,0.00018082,2]
[334004749,1722672688918,-1060.96,0.00018082,2]
[334004750,1722672688928,-6100.7,0.00018082,2]
[334004751,1722672688938,-4981.79,0.00018082,2]
[334004752,1722672688947,-500.0,0.00018082,2]
[334004753,1722672688956,-2170.91,0.00018082,2]
[334004754,1722672688966,-937.04,0.00018082,2]
[334004755,1722672688977,-2840.72,0.00018082,2]
[334004756,1722672688988,-4003.25,0.00018082,2]
[334004757,1722672688998,-804.77,0.00018082,2]
[334004758,1722672689007,-500.0,0.00018082,2]
[334004759,1722672689017,-500.0,0.00018082,2]
[334004760,1722672689026,-1151.68,0.00018082,2]
[334004761,1722672689035,-2144.3,0.00018082,2]
[334004762,1722672689044,-500.0,0.00018082,2]
[334004763,1722672689053,-721.28,0.00018082,2]
[334004764,1722672689062,-500.0,0.00018082,2]
[334004765,1722672689072,-1032.34,0.00018082,2]
[334004766,1722672689081,-549.7,0.00018082,2]
[334004767,1722672689091,-2037.25,0.00018082,2]
[334004768,1722672689101,-928.42,0.00018082,2]
[334004769,1722672689110,-3499.27,0.00018082,2]
[334004770,1722672689119,-1536.28,0.00018082,2]
[334004771,1722672689128,-500.0,0.00018082,2]
[334004772,1722672689137,-1037.63,0.00018082,2]
[334004773,1722672689146,-1737.33,0.00018082,2]
[334004774,1722672689157,-1095.94,0.00018082,2]
[334004775,1722672689167,-1906.6,0.00018082,2]
[334004776,1722672689177,-500.0,0.00018082,2]
[334004777,1722672689186,-500.0,0.00018082,2]
[334004778,1722672689195,-663.02,0.00018082,2]
[334004779,1722672689206,-602.45,0.00018082,2]
[334004780,1722672689217,-500.0,0.00018082,2]
[334004781,1722672689227,-1104.11,0.00018082,2]
[334004782,1722672689238,-155.0,0.00018176,2]
[334004783,1722672689247,-1385.30091979,0.00018356,2]
[334004784,1722672689257,-500.0,0.00018356,2]
[334004785,1722672689267,-500.0,0.00018356,2]
[334004786,1722672689277,-500.0,0.00018356,2]
[334004787,1722672689286,-500.0,0.00018356,2]
[334004788,1722672689296,-500.0,0.00018356,2]
[334004789,1722672689306,-500.0,0.00018356,2]
[334004790,1722672689315,-500.0,0.00018356,2]
[334004791,1722672689325,-500.0,0.00018356,2]
[334004792,1722672689335,-500.0,0.00018356,2]
[334004793,1722672689344,-500.0,0.00018356,2]
[334004794,1722672689354,-500.0,0.00018356,2]
[334004795,1722672689363,-500.0,0.00018356,2]
[334004796,1722672689372,-500.0,0.00018356,2]
[334004797,1722672689381,-537.74,0.00018356,2]
[334004798,1722672689391,-500.0,0.00018356,2]
[334004799,1722672689401,-500.0,0.00018356,2]
[334004800,1722672689410,-907.58,0.00018356,2]
[334004801,1722672689419,-500.0,0.00018356,2]
[334004802,1722672689429,-500.0,0.00018356,2]
[334004803,1722672689438,-500.0,0.00018356,2]
[334004804,1722672689448,-500.0,0.00018356,2]
[334004805,1722672689458,-500.0,0.00018356,2]
[334004806,1722672689467,-500.0,0.00018356,2]
[334004807,1722672689477,-560.39,0.00018356,2]
[334004808,1722672689486,-500.0,0.00018356,2]
[334004809,1722672689496,-500.0,0.00018356,2]
[334004810,1722672689505,-550.32,0.00018356,2]
[334004811,1722672689514,-500.0,0.00018356,2]
[334004812,1722672689526,-548.45,0.00018356,2]
[334004813,1722672689536,-500.0,0.00018356,2]
[334004814,1722672689545,-500.0,0.00018356,2]
[334004815,1722672689554,-500.0,0.00018356,2]
[334004816,1722672689564,-599.16,0.00018356,2]
[334004817,1722672689573,-500.0,0.00018356,2]
[334004818,1722672689582,-500.0,0.00018356,2]
[334004819,1722672689591,-500.0,0.00018356,2]
[334004820,1722672689601,-500.0,0.00018356,2]
[334004821,1722672689611,-500.0,0.00018356,2]
[334004822,1722672689620,-561.29,0.00018356,2]
[334004823,1722672689629,-528.88,0.00018356,2]
[334004824,1722672689638,-500.0,0.00018356,2]
[334004825,1722672689647,-500.0,0.00018356,2]
[334004826,1722672689657,-500.0,0.00018356,2]
[334004827,1722672689666,-500.0,0.00018356,2]
[334004828,1722672689675,-500.0,0.00018356,2]
[334004829,1722672689684,-500.0,0.00018356,2]
[334004830,1722672689694,-512.2482135,0.00018356,2]
[334004831,1722672689703,-544.55795442,0.00018356,2]
[334004832,1722672689712,-706.98,0.00018356,2]
[334004833,1722672689722,-500.0,0.00018356,2]
[334004834,1722672689731,-500.0,0.00018356,2]
[334004835,1722672689740,-500.0,0.00018356,2]
[334004836,1722672689749,-500.0,0.00018356,2]
[334004837,1722672689759,-500.0,0.00018356,2]
[334004838,1722672689768,-500.0,0.00018356,2]
[334004839,1722672689777,-696.17,0.00018356,2]
[334004840,1722672689787,-500.0,0.00018356,2]
[334004841,1722672689795,-500.0,0.00018356,2]
[334004842,1722672689806,-428.75236722,0.00018356,2]
[334004843,1722672689815,-500.0,0.00018356,2]
[334004844,1722672689824,-500.0,0.00018356,2]
[334004845,1722672689834,-500.0,0.00018356,2]
[334004846,1722672689843,-500.0,0.00018356,2]
[334004847,1722672689853,-500.0,0.00018356,2]
[334004848,1722672689862,-500.0,0.00018356,2]
[334004849,1722672689871,-500.0,0.00018356,2]
[334004850,1722672689882,-508.13,0.00018356,2]
[334004851,1722672689891,-924.44,0.00018356,2]
[334004852,1722672689902,-500.0,0.00018356,2]
[334004853,1722672689912,-748.67,0.00018356,2]
[334004854,1722672689923,-610.71,0.00018356,2]
[334004855,1722672689935,-500.0,0.00018356,2]
[334004856,1722672689944,-616.11,0.00018356,2]
[334004857,1722672689954,-500.0,0.00018356,2]
[334004858,1722672689963,-500.0,0.00018356,2]
[334004859,1722672689972,-500.0,0.00018356,2]
[334004860,1722672689981,-500.0,0.00018356,2]
[334004861,1722672689990,-500.0,0.00018356,2]
[334004862,1722672689999,-500.0,0.00018356,2]
[334004863,1722672690009,-500.0,0.00018356,2]
[334004864,1722672690017,-526.29,0.00018356,2]
[334004865,1722672690027,-804.34,0.00018356,2]
[334004866,1722672690037,-500.0,0.00018356,2]
[334004867,1722672690048,-500.0,0.00018356,2]
[334004868,1722672690058,-500.0,0.00018356,2]
[334004869,1722672690068,-500.0,0.00018356,2]
[334004870,1722672690077,-500.0,0.00018356,2]
[334004871,1722672690086,-500.0,0.00018356,2]
[334004872,1722672690098,-590.71,0.00018356,2]
[334004873,1722672690108,-271.30751477,0.00018356,2]
[334004874,1722672690118,-500.0,0.00018356,2]
[334004875,1722672690129,-500.0,0.00018356,2]
[334004876,1722672690139,-572.46,0.00018356,2]
[334004877,1722672690148,-283.1440272,0.00018356,2]
[334004878,1722672690158,-500.0,0.00018356,2]
[334004879,1722672690167,-500.0,0.00018356,2]
[334004880,1722672690176,-500.0,0.00018356,2]
[334004881,1722672690185,-1146.83,0.00018356,2]
[334004882,1722672690195,-500.0,0.00018356,2]
[334004883,1722672690204,-951.73,0.00018356,2]
[334004884,1722672690214,-500.0,0.00018356,2]
[334004885,1722672690223,-888.24,0.00018356,2]
[334004886,1722672690234,-500.0,0.00018356,2]
[334004887,1722672690243,-1734.7,0.00018356,2]
[334004888,1722672690252,-774.79,0.00018356,2]
[334004889,1722672690262,-500.0,0.00018356,2]
[334004890,1722672690271,-186.81805439,0.00018356,2]
[334004891,1722672690280,-500.0,0.00018356,2]
[334004892,1722672690289,-500.0,0.00018356,2]
[334004893,1722672690298,-500.0,0.00018356,2]
[334004894,1722672690308,-500.0,0.00018356,2]
[334004895,1722672690317,-500.0,0.00018356,2]
[334004896,1722672690326,-500.0,0.00018356,2]
[334004897,1722672690336,-682.31,0.00018356,2]
[334004898,1722672690345,-204.68431857,0.00018356,2]
[334004899,1722672690355,-500.0,0.00018356,2]
[334004900,1722672690365,-500.0,0.00018356,2]
[334004901,1722672690374,-500.0,0.00018356,2]
[334004902,1722672690384,-648.41,0.00018356,2]
[334004903,1722672690393,-500.0,0.00018356,2]
[334004904,1722672690402,-795.59,0.00018356,2]
[334004905,1722672690412,-500.0,0.00018356,2]
[334004906,1722672690421,-500.0,0.00018356,2]
[334004907,1722672690430,-500.0,0.00018356,2]
[334004908,1722672690439,-723.82,0.00018356,2]
[334004909,1722672690450,-500.0,0.00018356,2]
[334004910,1722672690459,-500.0,0.00018356,2]
[334004911,1722672690468,-500.0,0.00018356,2]
[334004912,1722672690478,-500.0,0.00018356,2]
[334004913,1722672690487,-500.0,0.00018356,2]
[334004914,1722672690496,-500.0,0.00018356,2]
[334004915,1722672690505,-1168.92,0.00018356,2]
[334004916,1722672690516,-819.92,0.00018356,2]
[334004917,1722672690526,-500.0,0.00018356,2]
[334004918,1722672690535,-500.0,0.00018356,2]
[334004919,1722672690544,-508.94,0.00018356,2]
[334004920,1722672690554,-582.03,0.00018356,2]
[334004921,1722672690564,-500.0,0.00018356,2]
[334004922,1722672690573,-618.32,0.00018356,2]
[334004923,1722672690583,-218.51972797,0.00018356,2]
[334004924,1722672690593,-1159.6,0.00018356,2]
[334004925,1722672690603,-500.0,0.00018356,2]
[334004926,1722672690612,-500.0,0.00018356,2]
[334004927,1722672690622,-227.24397761,0.00018356,2]
[334004928,1722672690631,-500.0,0.00018356,2]
[334004929,1722672690641,-500.0,0.00018356,2]
[334004930,1722672690651,-577.66,0.00018356,2]
[334004931,1722672690661,-500.0,0.00018356,2]
[334004932,1722672690671,-500.0,0.00018356,2]
[334004933,1722672690680,-549.41,0.00018356,2]
[334004934,1722672690690,-557.40389315,0.00018356,2]
[334004935,1722672690699,-530.35,0.00018356,2]
[334004936,1722672690708,-500.0,0.00018356,2]
[334004937,1722672690718,-925.21,0.00018356,2]
[334004938,1722672690732,-525.77,0.00018356,2]
[334004939,1722672690741,-500.0,0.00018356,2]